bitfinex-derivatives/quotes_BNBF0:USTF0_20241225
["timestamp","ask_amount","ask_price","bid_price","bid_amount"]
[1735121457305,0.2591462,710.73,708.48,1.03736609]
[1735121457608,0.2591462,710.72,708.48,1.03736609]
[1735121457804,1.30978309,711.02,708.47,1.03736609]
[1735121458103,0.2591462,711.01,708.47,1.03736609]
[1735121458311,0.2591462,711.0,708.47,1.03736609]
[1735121458504,0.2591462,710.99,708.47,1.03736609]
[1735121458708,0.2591462,710.98,708.48,1.03736609]
[1735121459008,0.2591462,710.97,708.48,1.03736609]
[1735121459210,1.05063689,711.01,708.48,1.03736609]
[1735121459410,0.25916114,711.0,708.51,1.03736609]
[1735121459610,0.25916114,710.99,708.51,1.03736609]
[1735121459809,0.25916114,710.98,708.51,1.03736609]
[1735121460109,0.25916114,710.97,708.51,1.03736609]
[1735121460309,0.25916114,710.96,708.51,1.03736609]
[1735121460510,0.25916114,710.95,708.49,1.03736609]
[1735121460809,0.25916114,710.94,708.49,1.03736609]
[1735121461009,0.25916114,710.93,708.49,1.03736609]
[1735121461210,0.25916114,710.92,708.49,1.03736609]
[1735121461403,0.25916114,710.91,708.49,1.03736609]
[1735121461607,0.25916114,710.9,708.49,1.03736609]
[1735121461811,0.25916114,710.89,708.44,1.03736609]
[1735121462109,0.25916114,710.88,708.44,1.03736609]
[1735121462311,0.25916114,710.87,708.44,1.03736609]
[1735121462509,3.13616616,711.28,708.56,1.03736609]
[1735121462510,1.30979803,710.86,708.56,1.03736609]
[1735121462711,0.25916114,710.85,708.56,1.03736609]
[1735121463011,0.25916114,710.84,708.56,1.03736609]
[1735121463205,0.25916114,710.83,708.56,1.03736609]
[1735121463407,0.25916114,710.82,708.52,1.03736609]
[1735121463613,0.25916114,710.81,708.52,1.03736609]
[1735121463813,0.25916114,710.8,708.52,1.03736609]
[1735121464007,0.25916114,710.79,708.52,1.03736609]
[1735121464208,0.25916114,710.78,708.52,1.03736609]
[1735121464413,0.25916114,710.77,708.52,1.03736609]
[1735121464610,1.30979803,710.76,708.38,1.03736609]
[1735121464811,0.25916114,710.75,708.38,1.03736609]
[1735121465009,0.25916114,710.74,708.38,1.03736609]
[1735121465207,0.25916114,710.73,708.38,1.03736609]
[1735121465410,0.25916114,710.73,708.08,1.03736609]
[1735121465411,1.05063689,710.65,708.46,1.03736609]
[1735121465716,0.25916114,710.64,708.46,1.03736609]
[1735121465915,0.25916114,710.63,708.46,1.03736609]
[1735121466117,0.25916114,710.62,708.46,1.03736609]
[1735121466415,0.25916114,710.61,708.44,1.03736609]
[1735121466714,0.25920133,710.6,708.44,1.03736609]
[1735121466915,0.25920133,710.59,708.44,1.03736609]
[1735121467115,0.25920133,710.58,708.44,1.03736609]
[1735121467414,0.25920133,710.57,708.41,1.03736609]
[1735121467715,0.25920133,710.56,708.41,1.03736609]
[1735121468013,0.25920133,710.55,708.41,1.03736609]
[1735121468214,0.25920133,710.54,708.41,1.03736609]
[1735121468411,0.25920133,710.53,708.41,1.03736609]
[1735121468610,0.25920133,710.53,707.62,2.11795576]
[1735121468611,0.25920133,710.52,708.39,1.03736609]
[1735121468916,0.25920133,710.51,708.39,1.03736609]
[1735121469117,0.25920133,710.5,708.39,1.03736609]
[1735121469312,0.25921902,710.49,708.39,1.03736609]
[1735121469510,0.25921902,710.48,708.41,1.03736609]
[1735121469815,0.25921902,710.47,708.41,1.03736609]
[1735121470016,0.25921902,710.46,708.41,1.03736609]
[1735121470213,1.05063689,710.63,708.43,1.03736609]
[1735121471320,1.05063689,710.72,708.49,1.03736609]
[1735121471516,0.25918675,710.62,708.49,1.03736609]
[1735121471713,0.2591807,710.61,708.49,1.03736609]
[1735121471918,0.2591807,710.6,708.49,1.03736609]
[1735121472113,0.2591807,710.59,708.49,1.03736609]
[1735121472318,0.2591807,710.58,708.51,1.03736609]
[1735121472514,0.2591807,710.57,708.51,1.03736609]
[1735121472818,1.05063689,710.74,708.51,1.03736609]
[1735121473020,0.25909458,710.73,708.51,1.03736609]
[1735121473620,0.25909458,710.72,708.51,1.03736609]
[1735121473815,0.25909458,710.72,708.24,1.03736609]
[1735121473816,0.25909458,710.71,708.76,1.03736609]
[1735121474019,0.25909458,710.7,708.76,1.03736609]
[1735121474215,0.25909458,710.69,708.76,1.03736609]
[1735121474414,0.25909458,710.68,708.76,1.03736609]
[1735121474617,0.25909458,710.67,708.76,1.03736609]
[1735121474812,0.25909458,710.66,708.76,1.03736609]
[1735121475018,0.25909458,710.65,708.81,1.03736609]
[1735121475215,0.25909458,710.64,708.81,1.03736609]
[1735121475420,0.25909458,710.63,708.81,1.03736609]
[1735121475620,0.25909458,710.62,708.81,1.03736609]
[1735121475820,0.25909458,710.61,708.82,1.03736609]
[1735121476020,0.25909458,710.6,708.82,1.03736609]
[1735121476218,0.25909458,710.59,708.82,1.03736609]
[1735121476418,0.25908928,710.58,708.82,1.03736609]
[1735121476720,0.28146813,710.56,708.82,1.03736609]
[1735121476921,0.25908928,710.55,708.82,1.03736609]
[1735121478128,0.25908928,710.55,708.87,1.03736609]
[1735121479122,0.25908928,710.55,708.9,1.03736609]
[1735121481127,0.28146813,710.56,708.9,1.03736609]
[1735121481328,0.28146813,710.56,708.91,1.03736609]
[1735121482727,0.28146813,710.56,709.05,1.03736609]
[1735121484630,0.25901864,710.55,708.8,1.03736609]
[1735121484930,0.25901864,710.55,708.81,0.28216306]
[1735121487334,0.25902237,710.54,708.81,0.28216306]
[1735121487531,0.25902237,710.53,708.81,0.28216306]
[1735121487728,0.28146813,710.56,708.81,0.28216306]
[1735121487729,0.25902237,710.52,708.81,0.28216306]
[1735121487925,0.25902237,710.51,708.81,0.28216306]
[1735121488130,0.25902353,710.5,708.81,0.28216306]
[1735121488333,0.25902353,710.49,708.81,0.28216306]
[1735121488534,0.25902353,710.48,708.81,0.28216306]
[1735121488734,0.25902353,710.47,708.81,0.28216306]
[1735121489035,0.25902353,710.46,708.81,0.28216306]
[1735121489234,0.25902353,710.45,708.81,0.28216306]
[1735121489434,0.28146813,710.56,708.81,0.28216306]
[1735121489636,0.25901948,710.55,708.81,0.28216306]
[1735121490133,0.25901931,710.54,708.81,0.28216306]
[1735121490331,0.25901931,710.53,708.81,0.28216306]
[1735121490532,0.25901931,710.52,708.81,0.28216306]
[1735121490834,0.25901931,710.51,708.81,0.28216306]
[1735121491034,0.25901931,710.5,708.81,0.28216306]
[1735121491235,0.25901931,710.49,708.81,0.28216306]
[1735121491437,0.25901931,710.48,708.81,0.28216306]
[1735121491635,0.25901931,710.47,708.81,0.28216306]
[1735121491837,0.25901931,710.46,708.81,0.28216306]
[1735121492036,0.25901931,710.45,708.81,0.28216306]
[1735121492338,0.25901931,710.44,708.81,0.28216306]
[1735121492537,0.25901931,710.43,708.81,0.28216306]
[1735121492732,0.25903486,710.42,708.81,0.28216306]
[1735121492938,0.28146813,710.56,708.81,0.28216306]
[1735121493234,0.25907699,710.55,708.81,0.28216306]
[1735121493437,0.25907699,710.54,708.81,0.28216306]
[1735121493640,0.25907699,710.53,708.81,0.28216306]
[1735121493840,0.25907699,710.52,708.81,0.28216306]
[1735121494039,0.25907699,710.51,708.81,0.28216306]
[1735121494241,0.25907699,710.5,708.81,0.28216306]
[1735121494440,0.25907699,710.49,708.81,0.28216306]
[1735121494641,0.25907699,710.48,708.81,0.28216306]
[1735121494941,0.25907699,710.47,708.81,0.28216306]
[1735121495239,0.28146813,710.56,708.81,0.28216306]
[1735121495240,0.25907699,710.46,708.81,0.28216306]
[1735121495442,0.25909153,710.45,708.81,0.28216306]
[1735121495739,0.25909153,710.44,708.81,0.28216306]
[1735121495939,0.25909153,710.43,708.81,0.28216306]
[1735121496233,0.25909153,710.42,708.81,0.28216306]
[1735121496438,0.25909153,710.41,708.81,0.28216306]
[1735121496638,0.25909153,710.4,708.81,0.28216306]
[1735121496835,0.25909153,710.39,708.81,0.28216306]
[1735121497133,0.25909153,710.38,708.81,0.28216306]
[1735121497337,0.25909153,710.37,708.81,0.28216306]
[1735121497538,0.25909153,710.36,708.81,0.28216306]
[1735121497734,0.25909153,710.35,708.81,0.28216306]
[1735121497935,0.28146813,710.56,708.81,0.28216306]
[1735121497936,0.25909153,710.34,708.81,0.28216306]
[1735121498136,0.25909153,710.33,708.81,0.28216306]
[1735121498333,0.25910437,710.32,708.81,0.28216306]
[1735121498641,0.25910437,710.31,708.81,0.28216306]
[1735121498938,0.25910437,710.3,708.81,0.28216306]
[1735121499140,0.25910437,710.29,708.81,0.28216306]
[1735121499340,0.25910437,710.28,708.81,0.28216306]
[1735121499541,0.25910437,710.27,708.81,0.28216306]
[1735121499840,0.25909885,710.26,708.81,0.28216306]
[1735121500140,0.25909885,710.25,708.81,0.28216306]
[1735121500336,0.25909885,710.55,708.81,0.28216306]
[1735121500635,0.25909885,710.54,708.81,0.28216306]
[1735121500839,0.25909885,710.53,708.81,0.28216306]
[1735121501038,0.25911568,710.52,708.81,0.28216306]
[1735121501238,0.25911568,710.51,708.81,0.28216306]
[1735121501438,0.25911568,710.5,708.81,0.28216306]
[1735121501640,0.25911568,710.49,708.81,0.28216306]
[1735121501836,0.25911568,710.48,708.81,0.28216306]
[1735121502035,0.25911568,710.47,708.81,0.28216306]
[1735121502237,0.28146813,710.56,708.85,1.03736609]
[1735121502238,0.25911568,710.46,708.85,1.03736609]
[1735121502440,0.25911568,710.45,708.85,1.03736609]
[1735121502643,0.25911568,710.44,708.85,1.03736609]
[1735121502938,0.25911568,710.43,708.84,1.03736609]
[1735121503139,0.25911568,710.42,708.84,1.03736609]
[1735121503336,0.25911568,710.41,708.84,1.03736609]
[1735121503537,0.25911568,710.4,708.84,1.03736609]
[1735121503737,0.28146813,710.56,708.84,1.03736609]
[1735121503738,0.25911568,710.55,708.84,1.03736609]
[1735121503945,0.25911568,710.54,708.86,1.03736609]
[1735121504149,0.25911568,710.53,708.86,1.03736609]
[1735121504348,0.25911568,710.55,708.86,1.03736609]
[1735121504552,0.28146813,710.56,708.89,1.03736609]
[1735121504751,0.25907254,710.55,708.89,1.03736609]
[1735121505451,0.25907254,710.55,708.91,1.03736609]
[1735121506453,0.28146813,710.56,708.91,1.03736609]
[1735121506654,0.25907371,710.55,708.98,1.03736609]
[1735121507549,0.25907371,710.55,709.02,1.03736609]
[1735121510560,0.25907371,710.55,709.07,1.03736609]
[1735121513160,0.28146813,710.56,709.06,1.03736609]
[1735121513361,0.28146813,710.56,708.81,0.28216306]
[1735121513362,0.28146813,710.56,709.19,1.03736609]
[1735121514462,0.28146813,710.56,709.18,1.03736609]
[1735121515660,0.28146813,710.56,709.21,1.03736609]
[1735121516663,0.28146813,710.56,709.18,1.03736609]
[1735121517564,0.28146813,710.56,709.12,1.03736609]
[1735121518365,0.28146813,710.56,709.13,1.03736609]
[1735121521067,0.28146813,710.56,709.06,1.03736609]
[1735121521966,0.28146813,710.56,709.01,1.03736609]
[1735121522768,0.28146813,710.56,708.97,1.03736609]
[1735121523766,0.28146813,710.56,709.0,1.03736609]
[1735121524768,0.28146813,710.56,708.97,1.03736609]
[1735121525859,0.28146813,710.56,708.9,1.03736609]
[1735121526065,0.28146813,710.56,708.91,0.28212325]
[1735121531671,0.28146813,710.56,708.96,1.03736609]
[1735121532671,0.28146813,710.56,708.99,1.03736609]
[1735121533671,0.28146813,710.56,709.02,1.03736609]
[1735121534770,0.28146813,710.56,709.03,1.03736609]
[1735121535773,0.28146813,710.56,709.16,1.03736609]
[1735121536071,0.25895474,710.55,709.16,1.03736609]
[1735121536271,0.28147606,710.54,709.16,1.03736609]
[1735121536467,0.25895474,710.53,709.16,1.03736609]
[1735121536668,0.28148398,710.52,709.19,1.03736609]
[1735121539376,0.28148398,710.52,709.22,1.03736609]
[1735121540570,0.28148398,710.52,709.48,1.03736609]
[1735121541676,0.28148398,710.52,709.36,1.03736609]
[1735121542577,0.28148398,710.52,709.34,1.03736609]
[1735121543574,0.28148398,710.52,709.42,1.03736609]
[1735121544476,0.28148398,710.52,709.37,1.03736609]
[1735121545471,0.28148398,710.52,708.92,0.75882277]
[1735121545472,0.28148398,710.52,709.38,1.03736609]
[1735121547369,0.28148398,710.52,709.27,1.03736609]
[1735121557585,0.28148398,710.52,709.19,1.03736609]
[1735121558583,0.28148398,710.52,708.91,0.28212325]
[1735121558584,0.28148398,710.52,709.24,1.03736609]
[1735121559682,0.28148398,710.52,709.39,1.03736609]
[1735121560787,0.28148398,710.52,709.41,1.03736609]
[1735121561988,0.28148398,710.52,709.37,1.03736609]
[1735121565593,0.28148398,710.52,709.35,1.03736609]
[1735121566592,0.28148398,710.52,709.36,1.03736609]
[1735121568893,0.28148398,710.52,708.91,0.28212325]
[1735121569993,0.28148398,710.52,709.08,1.03736609]
[1735121570595,0.25899702,710.51,709.08,1.03736609]
[1735121570789,0.28149586,710.49,709.08,1.03736609]
[1735121571195,0.28149586,710.49,709.04,1.03736609]
[1735121572196,0.28149586,710.49,709.05,1.03736609]
[1735121573098,0.28149586,710.49,709.09,1.03736609]
[1735121573999,0.28149586,710.49,709.12,1.03736609]
[1735121574795,0.28149586,710.49,709.22,1.03736609]
[1735121577103,0.28149586,710.49,709.23,1.03736609]
[1735121578110,0.2660272,710.49,709.23,1.03736609]
[1735121578405,0.2660272,710.49,709.24,1.03736609]
[1735121579607,0.2660272,710.49,709.29,1.03736609]
[1735121580608,0.2660272,710.49,709.32,1.03736609]
[1735121581904,0.2660272,710.49,709.37,1.03736609]
[1735121582407,0.25896778,710.48,709.37,1.03736609]
[1735121582808,0.25896778,710.48,709.44,1.03736609]
[1735121583007,0.28150379,710.47,709.44,1.03736609]
[1735121583208,0.25896778,710.46,709.44,1.03736609]
[1735121583911,0.25896778,710.46,709.45,1.03736609]
[1735121584113,0.28150379,710.47,709.45,1.03736609]
[1735121585111,0.28150379,710.47,709.2,1.03736609]
[1735121586107,0.28150379,710.47,709.18,1.03736609]
[1735121587311,0.28150379,710.47,709.19,1.03736609]
[1735121588113,0.28150379,710.47,709.21,1.03736609]
[1735121589515,0.28150379,710.47,709.18,1.03736609]
[1735121590513,0.28150379,710.47,709.17,1.03736609]
[1735121591410,0.28150379,710.47,709.25,1.03736609]
[1735121592514,0.28150379,710.47,708.36,2.11795576]
[1735121592716,0.28150379,710.47,707.73,2.74115452]
[1735121593015,0.28150379,710.47,707.74,5.25025589]
[1735121593212,0.28150379,710.47,707.75,2.74115452]
[1735121593409,0.28150379,710.47,707.75,5.25025589]
[1735121593614,0.28150379,710.47,707.76,1.43120215]
[1735121593814,0.28150379,710.47,707.76,5.25025589]
[1735121594008,0.28150379,710.47,707.77,5.25025589]
[1735121594214,0.28150379,710.47,707.78,5.25025589]
[1735121594419,0.25904287,710.46,709.23,1.0419299]
[1735121595218,0.25904287,710.46,709.15,1.0419299]
[1735121595416,0.28150379,710.47,709.15,1.0419299]
[1735121595614,0.25906559,710.46,709.15,1.0419299]
[1735121596117,0.25906559,710.46,709.11,1.0419299]
[1735121597019,0.25906559,710.46,709.08,1.0419299]
[1735121598220,0.25907475,710.45,709.05,1.0419299]
[1735121598419,0.25907475,710.44,709.05,1.0419299]
[1735121598619,0.25907475,710.43,709.05,1.0419299]
[1735121598818,0.25907475,710.42,709.05,1.0419299]
[1735121599012,0.25907475,710.41,709.05,1.0419299]
[1735121599213,0.25907475,710.4,709.05,1.0419299]
[1735121599414,0.25907475,710.39,709.05,1.0419299]
[1735121599615,0.25907475,710.38,709.03,1.0419299]
[1735121599814,0.25907475,710.37,709.03,1.0419299]
[1735121600119,0.28150379,710.47,709.03,1.0419299]
[1735121600614,0.28150379,710.47,709.0,1.0419299]
[1735121601015,0.25897685,710.46,709.0,1.0419299]
[1735121601520,0.28150379,710.47,709.29,1.0419299]
[1735121602114,0.25897592,710.46,709.29,1.0419299]
[1735121602720,0.25897592,710.46,709.27,1.0419299]
[1735121602919,0.28150379,710.47,709.27,1.0419299]
[1735121603723,0.28150379,710.47,709.01,1.0419299]
[1735121604623,0.28150379,710.47,709.02,1.0419299]
[1735121605825,0.28150379,710.47,709.07,1.0419299]
[1735121606626,0.28150379,710.47,709.17,1.0419299]
[1735121607820,0.28150379,710.47,709.24,1.0419299]
[1735121608721,0.28150379,710.47,709.18,1.0419299]
[1735121609521,0.28150379,710.47,709.21,1.0419299]
[1735121610627,0.28150379,710.47,709.28,1.0419299]
[1735121612042,0.28150379,710.47,709.31,1.0419299]
[1735121613230,0.28150379,710.47,709.28,1.0419299]
[1735121613925,0.25898651,710.46,709.28,1.0419299]
[1735121615527,0.25898651,710.46,709.3,1.0419299]
[1735121616330,0.28151568,710.44,709.33,1.0419299]
[1735121616530,0.25898651,710.43,709.33,1.0419299]
[1735121617926,0.28151568,710.44,709.33,1.0419299]
[1735121618126,0.25902109,710.43,709.33,1.0419299]
[1735121618634,0.25902109,710.43,709.17,1.0419299]
[1735121619931,0.28151568,710.44,709.15,1.0419299]
[1735121620126,0.25902103,710.43,709.15,1.0419299]
[1735121621126,0.25902103,710.43,709.03,1.0419299]
[1735121622033,0.25902103,710.43,709.05,1.0419299]
[1735121622729,0.28151568,710.44,709.05,1.0419299]
[1735121622929,0.2590649,710.43,709.05,1.0419299]
[1735121623230,0.2590649,710.43,708.92,1.0419299]
[1735121623630,0.2590649,710.43,708.93,0.695]
[1735121626127,0.25906352,710.42,708.93,0.695]
[1735121626335,0.25906352,710.41,708.93,0.695]
[1735121626533,0.28151568,710.44,708.93,0.695]
[1735121626833,0.25904209,710.43,708.93,0.695]
[1735121627731,0.25904209,710.43,708.96,1.0419299]
[1735121628542,0.25904209,710.43,708.94,1.0419299]
[1735121629533,0.25904209,710.43,709.03,1.0419299]
[1735121630640,0.25904209,710.43,708.98,1.0419299]
[1735121631537,0.25904209,710.43,708.93,0.695]
[1735121633335,0.28152756,710.41,708.93,0.695]
[1735121633533,0.25904209,710.4,708.93,0.695]
[1735121636542,0.25909504,710.39,708.93,0.695]
[1735121636745,0.25909504,710.38,708.93,0.695]
[1735121636941,0.25909504,710.37,708.93,0.695]
[1735121637136,0.25909504,710.36,708.93,0.695]
[1735121637456,0.25909504,710.35,708.93,0.695]
[1735121637743,0.25909504,710.34,708.93,0.695]
[1735121637943,0.25909504,710.33,708.93,0.695]
[1735121638142,0.25909504,710.32,708.93,0.695]
[1735121638341,0.25909504,710.31,708.93,0.695]
[1735121638641,0.25909504,710.3,708.93,0.695]
[1735121638836,0.25909504,710.29,708.93,0.695]
[1735121639039,0.25909504,710.28,708.93,0.695]
[1735121639239,0.25909504,710.4,708.93,0.695]
[1735121639441,0.28153945,710.38,708.93,0.695]
[1735121639642,0.25909504,710.37,708.93,0.695]
[1735121641240,0.25911551,710.36,708.93,0.695]
[1735121641448,0.25911551,710.35,708.93,0.695]
[1735121641639,0.25911551,710.34,708.93,0.695]
[1735121641845,0.25911551,710.33,708.93,0.695]
[1735121642044,0.25911551,710.32,708.93,0.695]
[1735121642341,0.25911551,710.31,708.93,0.695]
[1735121642648,0.28153945,710.38,708.93,0.695]
[1735121643846,0.25914526,710.37,708.93,0.695]
[1735121644039,0.25911682,710.36,708.93,0.695]
[1735121644244,0.25911682,710.35,708.93,0.695]
[1735121644445,0.25911682,710.34,708.93,0.695]
[1735121644646,0.25911682,710.33,708.93,0.695]
[1735121644840,0.25911682,710.32,708.93,0.695]
[1735121645046,0.25911682,710.31,708.93,0.695]
[1735121645247,0.25911682,710.3,708.93,0.695]
[1735121645446,0.25911682,710.29,708.93,0.695]
[1735121645648,0.25911682,710.28,708.93,0.695]
[1735121645848,0.25911682,710.27,708.93,0.695]
[1735121646048,0.28153945,710.38,708.93,0.695]
[1735121646049,0.25911682,710.26,708.93,0.695]
[1735121646242,0.25911682,710.25,708.93,0.695]
[1735121646445,0.25911682,710.24,708.93,0.695]
[1735121646643,0.25911682,710.23,708.93,0.695]
[1735121646842,0.25911732,710.22,708.93,0.695]
[1735121647149,0.25911732,710.21,708.93,0.695]
[1735121647343,0.25911732,710.2,708.93,0.695]
[1735121647547,0.25911732,710.19,708.93,0.695]
[1735121647745,0.28162271,710.17,708.93,0.695]
[1735121647946,0.25911732,710.16,708.93,0.695]
[1735121648651,0.25914241,710.15,708.93,0.695]
[1735121648850,0.25914241,710.14,708.93,0.695]
[1735121649050,0.28162271,710.17,708.93,0.695]
[1735121656056,0.28162271,710.17,708.94,1.0419299]
[1735121657456,0.28162271,710.17,708.95,0.85]
[1735121659558,0.28162271,710.17,708.95,1.8919299]
[1735121660555,0.28162271,710.17,708.96,1.0419299]
[1735121661959,0.28162271,710.17,709.1,1.0419299]
[1735121662963,0.28162271,710.17,709.07,1.0419299]
[1735121663868,0.28162271,710.17,709.15,1.0419299]
[1735121664867,0.28162271,710.17,709.13,1.0419299]
[1735121665873,0.28162271,710.17,709.18,1.0419299]
[1735121667272,0.28162271,710.17,709.15,1.0419299]
[1735121668167,0.28162271,710.17,709.14,1.0419299]
[1735121669173,0.28162271,710.17,708.95,0.85]
[1735121671272,0.25911862,710.16,708.95,0.85]
[1735121671670,0.28162271,710.17,708.95,0.85]
[1735121671867,0.25910983,710.16,708.95,0.85]
[1735121672672,0.28162271,710.17,708.95,0.85]
[1735121676469,0.28162271,710.17,708.98,1.0419299]
[1735121677374,0.28162271,710.17,708.95,1.8919299]
[1735121678175,0.28162271,710.17,708.96,1.0419299]
[1735121679373,0.28162271,710.17,708.95,0.85]
[1735121685479,0.28162271,710.17,708.8,1.0419299]
[1735121685680,0.28162271,710.17,708.78,1.0419299]
[1735121686681,0.28162271,710.17,707.47,2.12727354]
[1735121686682,0.28162271,710.17,708.86,1.0419299]
[1735121688581,0.28162271,710.17,708.85,1.0419299]
[1735121690683,0.28162271,710.17,708.86,1.0419299]
[1735121691379,0.28162271,710.17,709.01,1.0419299]
[1735121692284,0.28162271,710.17,709.15,1.0419299]
[1735121693476,0.28162271,710.17,709.16,1.0419299]
[1735121694476,0.28162271,710.17,709.24,1.0419299]
[1735121695683,0.28162271,710.17,708.8,0.76402906]
[1735121695684,0.28162271,710.17,709.13,1.0419299]
[1735121698886,0.28162271,710.17,709.12,1.0419299]
[1735121699886,0.28162271,710.17,708.79,1.05017102]
[1735121699887,0.28162271,710.17,709.11,1.0419299]
[1735121700890,0.28162271,710.17,709.03,1.0419299]
[1735121701991,0.28162271,710.17,708.79,1.05017102]
[1735121703895,0.28162271,710.17,708.89,1.0419299]
[1735121704997,0.28162271,710.17,709.06,1.0419299]
[1735121705996,0.28162271,710.17,709.09,1.0419299]
[1735121706895,0.28162271,710.17,708.79,1.05017102]
[1735121706896,0.28162271,710.17,708.93,1.0419299]
[1735121710102,0.28162271,710.17,709.04,1.0419299]
[1735121711206,0.28162271,710.17,709.03,1.0419299]
[1735121712502,0.28162271,710.17,708.79,1.05017102]
[1735121712503,0.28162271,710.17,709.07,1.0419299]
[1735121713508,0.28162271,710.17,709.03,1.0419299]
[1735121714401,0.28162271,710.17,708.79,1.05017102]
[1735121714402,0.28162271,710.17,709.05,1.0419299]
[1735121715211,0.28162271,710.17,709.08,1.0419299]
[1735121715807,0.28162271,710.17,709.09,0.83]
[1735121716305,0.28162271,710.17,709.11,1.0419299]
[1735121718512,0.28162271,710.17,709.21,1.0419299]
[1735121719411,0.28162271,710.17,709.26,1.0419299]
[1735121720308,0.28162271,710.17,709.29,1.0419299]
[1735121722107,0.28162271,710.17,709.28,1.0419299]
[1735121723106,0.28162271,710.17,709.3,1.0419299]
[1735121725114,0.28162271,710.17,709.31,1.0419299]
[1735121726112,0.28162271,710.17,709.09,0.83]
[1735121726113,0.28162271,710.17,709.3,1.0419299]
[1735121727317,0.28162271,710.17,709.32,1.0419299]
[1735121727911,0.28162271,710.17,709.33,0.758]
[1735121728312,0.28162271,710.17,709.33,1.7999299]
[1735121729517,0.28162271,710.17,709.34,1.0419299]
[1735121730420,0.28162271,710.17,709.33,0.758]
[1735121742130,0.28162271,710.17,709.0,1.0419299]
[1735121743130,0.28162271,710.17,709.01,1.7859299]
[1735121746032,0.28162271,710.17,709.02,1.0419299]
[1735121747435,0.28162271,710.17,709.06,1.0419299]
[1735121748431,0.28162271,710.17,709.28,1.0419299]
[1735121749739,0.28162271,710.17,709.34,1.0419299]
[1735121750838,0.28162271,710.17,709.38,1.0419299]
[1735121751940,0.28162271,710.17,709.39,1.0419299]
[1735121753339,0.28162271,710.17,709.53,1.0419299]
[1735121754339,0.28162271,710.17,709.54,1.0419299]
[1735121755339,0.28162271,710.17,709.55,0.692]
[1735121759339,1.05425951,711.68,709.55,0.692]
[1735121759544,0.28106467,711.58,709.55,0.692]
[1735121759843,0.2588395,711.57,709.55,0.692]
[1735121760039,0.2588395,711.56,709.55,0.692]
[1735121760239,0.2588395,711.55,709.55,0.692]
[1735121760441,0.2588395,711.54,709.55,0.692]
[1735121760642,0.2588395,711.53,709.55,0.692]
[1735121760842,0.2588395,711.52,709.55,0.692]
[1735121761041,0.2588395,711.51,709.55,0.692]
[1735121761242,0.2588395,711.5,709.55,0.692]
[1735121761442,0.2588395,711.57,709.55,0.692]
[1735121761641,0.25883495,711.56,709.55,0.692]
[1735121761842,0.25883495,711.55,709.55,0.692]
[1735121762043,0.25883495,711.54,709.55,0.692]
[1735121762243,0.25883495,711.57,709.55,0.692]
[1735121762443,0.25882942,711.53,709.55,0.692]
[1735121762745,0.28106467,711.58,709.55,0.692]
[1735121762746,0.25882942,711.52,709.55,0.692]
[1735121762939,0.25882942,711.51,709.55,0.692]
[1735121763143,0.25882942,711.5,709.55,0.692]
[1735121763337,0.25882942,711.49,709.55,0.692]
[1735121763538,0.25882942,711.48,709.55,0.692]
[1735121763743,0.25882942,711.47,709.55,0.692]
[1735121763945,0.25882942,711.46,709.55,0.692]
[1735121764244,0.28111998,711.44,709.55,0.692]
[1735121764645,0.25881775,711.43,709.55,0.692]
[1735121766848,0.28111998,711.44,709.55,0.692]
[1735121767146,0.25878755,711.43,709.55,0.692]
[1735121769253,0.28111998,711.44,709.55,0.692]
[1735121771150,0.25866166,711.43,709.55,0.692]
[1735121771352,0.28111998,711.44,709.55,0.692]
[1735121771851,0.25864326,711.43,709.55,0.692]
[1735121772052,0.28111998,711.44,709.55,0.692]
[1735121772252,0.25864087,711.43,709.55,0.692]
[1735121772948,0.28111998,711.44,709.55,0.692]
[1735121773354,0.28111998,711.44,709.45,1.0419299]
[1735121773755,0.28111998,711.44,709.51,1.0419299]
[1735121774750,0.28111998,711.44,709.52,0.963]
[1735121775250,0.25866903,711.43,709.52,0.963]
[1735121777248,0.25868381,711.42,709.52,0.963]
[1735121777452,0.25868381,711.41,709.52,0.963]
[1735121777656,0.25868381,711.4,709.52,0.963]
[1735121777952,0.25868381,711.39,709.52,0.963]
[1735121778157,0.25868381,711.38,709.52,0.963]
[1735121778358,0.28111998,711.44,709.52,0.963]
[1735121778559,0.25865038,711.43,709.52,0.963]
[1735121779855,0.25864871,711.42,709.52,0.963]
[1735121780159,0.25864871,711.41,709.52,0.963]
[1735121780358,0.25864871,711.4,709.52,0.963]
[1735121780554,0.25864871,711.39,709.52,0.963]
[1735121780759,0.25864871,711.38,709.52,0.963]
[1735121780962,0.25864871,711.37,709.52,0.963]
[1735121781159,0.25864871,711.36,709.52,0.963]
[1735121781454,0.25864871,711.35,709.52,0.963]
[1735121781660,0.25864871,711.34,709.52,0.963]
[1735121781961,0.25864871,711.33,709.52,0.963]
[1735121782158,0.25864871,711.32,709.52,0.963]